bitfinex/quotes_ETHUSD_20241217
["timestamp","ask_amount","ask_price","bid_price","bid_amount"]
[1734396764355,0.7764,3954.3,3952.9,1.0450814]
[1734396764482,0.757,3954.1,3952.8,0.12804512]
[1734396764681,0.757,3954.1,3952.7,0.7764]
[1734396764682,0.757,3954.1,3952.5,1.0450814]
[1734396764932,0.757,3954.1,3952.5,2.0558204]
[1734396765908,0.757,3954.1,3952.4,1.16881865]
[1734396766118,0.757,3954.1,3952.5,0.58633195]
[1734396766304,0.757,3954.1,3952.5,3.58633195]
[1734396766630,0.757,3954.1,3952.5,0.58633195]
[1734396767331,0.55,3953.6,3951.9,1.0450814]
[1734396767495,0.757,3953.3,3951.7,1.010911]
[1734396767697,0.757,3953.1,3951.3,0.30233177]
[1734396767920,0.757,3953.1,3951.3,0.61297861]
[1734396768100,0.757,3953.1,3951.4,1.010979]
[1734396768440,0.757,3953.1,3951.5,0.16239576]
[1734396769932,0.757,3953.1,3952.1,3.0]
[1734396770390,0.757,3953.1,3951.5,0.16239576]
[1734396770718,0.757,3952.9,3952.1,3.0]
[1734396770925,0.757,3952.9,3951.5,0.16239576]
[1734396771102,0.757,3952.9,3952.1,3.0]
[1734396771444,0.757,3952.9,3952.1,3.3]
[1734396771589,0.757,3952.9,3952.1,0.3]
[1734396771790,0.757,3952.9,3952.5,3.0]
[1734396771993,0.757,3952.9,3951.6,0.02529795]
[1734396772406,0.757,3952.9,3952.7,3.0]
[1734396772643,0.757,3952.9,3951.8,0.8233]
[1734396773402,0.757,3952.9,3952.7,3.0]
[1734396773606,0.757,3952.9,3952.8,0.3]
[1734396774342,0.757,3952.9,3951.8,0.8233]
[1734396774547,0.757,3952.9,3952.7,3.0]
[1734396775096,0.757,3952.9,3951.8,0.8233]
[1734396776867,0.757,3952.9,3951.8,0.95193016]
[1734396777455,0.757,3952.9,3951.8,0.97722763]
[1734396778375,0.757,3952.9,3951.9,0.02529585]
[1734396778571,0.757,3952.9,3952.7,3.0]
[1734396778776,0.757,3954.8,3952.7,3.0]
[1734396779080,0.757,3954.8,3953.5,3.0]
[1734396779251,0.757,3954.8,3952.7,0.8233]
[1734396779688,0.757,3954.8,3952.7,0.84859139]
[1734396780064,0.757,3954.8,3952.8,0.31064684]
[1734396780465,0.757,3954.8,3952.3,0.797]
[1734396780880,0.757,3954.8,3953.5,3.0]
[1734396781091,0.757,3954.8,3952.3,0.82229337]
[1734396781092,0.757,3954.8,3952.3,0.797]
[1734396781254,0.55,3954.7,3953.3,3.0]
[1734396781455,0.55,3954.5,3953.3,3.0]
[1734396781650,0.8045,3954.4,3952.3,0.82229337]
[1734396781888,0.8045,3954.4,3953.3,3.0]
[1734396782105,0.8045,3954.4,3952.3,0.797]
[1734396782305,0.8045,3954.4,3953.3,3.0]
[1734396782499,0.8045,3954.2,3952.9,3.0]
[1734396782798,0.55,3954.5,3952.9,3.0]
[1734396782799,0.8045,3954.0,3952.9,3.0]
[1734396783450,0.8045,3954.0,3952.0,0.3817772]
[1734396783952,0.55,3953.9,3952.0,0.25372265]
[1734396784181,0.8045,3953.8,3952.0,0.12576687]
[1734396784365,0.8045,3953.8,3951.5,0.16239576]
[1734396784565,0.8045,3953.8,3951.5,0.18769304]
[1734396786158,0.8045,3953.8,3951.9,0.12859948]
[1734396786469,0.8045,3953.8,3953.2,3.0]
[1734396786798,0.8045,3953.8,3953.2,3.3]
[1734396786970,0.8045,3953.8,3953.2,0.3]
[1734396787156,0.8045,3953.8,3953.2,3.0]
[1734396787558,0.8045,3953.8,3952.2,0.02529273]
[1734396787765,0.8045,3953.8,3953.2,3.0]
[1734396788300,0.8045,3953.8,3952.2,0.02529273]
[1734396788466,0.8045,3953.8,3953.2,3.0]
[1734396788663,0.8045,3953.8,3953.3,0.3]
[1734396789086,0.8045,3953.8,3952.7,3.0]
[1734396789263,0.8045,3953.8,3952.3,0.02529222]
[1734396789462,0.8045,3953.8,3953.1,3.0]
[1734396789670,0.8045,3953.8,3953.2,0.02529054]
[1734396789872,0.8045,3956.1,3953.2,3.02529054]
[1734396790113,3.68436389,3956.2,3953.2,3.02529054]
[1734396790114,0.8045,3955.9,3953.3,0.30252905]
[1734396790277,2.64866095,3956.2,3953.4,0.025288]
[1734396790278,0.23421651,3955.8,3953.4,0.025288]
[1734396790608,1.03871651,3955.7,3954.2,3.0]
[1734396790849,1.03890246,3955.7,3954.8,3.0]
[1734396791103,0.8045,3955.7,3954.9,0.02527952]
[1734396791504,0.8045,3955.7,3954.4,0.797]
[1734396791854,0.8045,3955.7,3955.1,3.0]
[1734396792060,0.8045,3955.7,3955.2,0.3]
[1734396792461,0.8045,3955.7,3954.5,0.02527961]
[1734396792702,0.8045,3955.7,3954.4,0.797]
[1734396792872,0.8045,3955.7,3954.5,0.02527963]
[1734396793072,0.8045,3955.7,3954.5,0.33592647]
[1734396794262,0.8045,3955.7,3954.5,0.02527963]
[1734396795086,0.8045,3955.7,3954.5,0.57527963]
[1734396795407,0.8045,3955.7,3955.4,3.0]
[1734396795984,0.8045,3955.7,3954.7,0.02527828]
[1734396796319,0.8279,3957.7,3954.7,0.33592512]
[1734396796515,0.8279,3957.5,3954.7,0.02527828]
[1734396796727,0.8279,3957.5,3955.9,3.0]
[1734396796875,0.8279,3957.5,3956.0,0.02527183]
[1734396797074,0.8279,3957.5,3955.9,3.3]
[1734396797373,0.8279,3957.5,3955.9,0.3]
[1734396797569,0.8279,3957.5,3955.3,0.7506]
[1734396798995,0.8279,3957.5,3955.4,0.02527184]
[1734396800010,0.8023,3957.3,3956.2,3.0]
[1734396800172,0.8023,3957.3,3955.3,0.12832098]
[1734396800481,0.55,3957.0,3956.0,3.0]
[1734396800805,0.8023,3956.9,3956.1,3.0]
[1734396801005,0.8023,3956.9,3955.0,0.15002094]
[1734396801237,0.8023,3956.9,3955.6,3.0]
[1734396801416,0.8023,3956.9,3955.7,0.32527375]
[1734396802617,0.8023,3956.9,3955.7,3.32527375]
[1734396803143,0.8023,3956.9,3955.7,0.3]
[1734396803311,0.8023,3956.9,3955.0,0.12474352]
[1734396803636,0.8023,3956.9,3955.6,3.0]
[1734396803835,0.8023,3956.9,3955.7,3.0]
[1734396804238,0.8023,3956.9,3955.0,0.15001902]
[1734396805514,0.8023,3956.9,3955.0,0.12474352]
[1734396805840,0.8023,3956.9,3955.7,3.0]
[1734396806011,0.8023,3956.9,3955.8,0.3]
[1734396806418,0.8023,3956.9,3955.9,0.02527551]
[1734396806615,0.8023,3956.9,3956.1,3.0]
[1734396806814,0.8023,3956.9,3955.8,0.3]
[1734396806815,0.8023,3956.9,3955.8,0.32527089]
[1734396807038,0.8023,3956.9,3956.4,3.0]
[1734396807538,0.8023,3956.9,3956.5,0.0252716]
[1734396807725,0.8023,3956.9,3956.5,3.0]
[1734396808039,0.8023,3956.9,3956.6,0.02527157]
[1734396808444,0.8023,3956.9,3956.6,3.02527157]
[1734396808755,0.8023,3956.9,3956.7,0.30252716]
[1734396809442,0.8023,3956.9,3956.6,3.0]
[1734396809843,0.8023,3956.9,3955.9,0.31064684]
[1734396810079,0.8023,3956.9,3955.6,0.90670874]
[1734396810080,0.8023,3956.9,3956.0,0.02527153]
[1734396810361,0.7513,3957.2,3956.8,3.0]
[1734396810546,0.7513,3957.2,3955.6,0.90670874]
[1734396811079,0.7513,3957.2,3956.8,3.0]
[1734396811538,0.74918985,3957.2,3956.8,0.3]
[1734396811725,0.74918985,3957.2,3956.1,0.14955751]
[1734396811922,0.74918985,3957.2,3956.1,0.46020435]
[1734396812150,0.74918985,3957.2,3956.1,0.43493524]
[1734396812764,0.74918985,3957.2,3956.2,0.02526978]
[1734396812967,0.74918985,3957.2,3956.1,0.43493524]
[1734396813320,0.74918985,3957.2,3957.1,3.0]
[1734396813531,0.74918985,3957.2,3956.1,0.43493524]
[1734396813800,0.74918985,3957.2,3957.1,3.0]
[1734396814170,0.74918985,3957.2,3957.1,0.3]
[1734396814369,0.74918985,3957.2,3957.1,3.0]
[1734396814526,0.74918985,3957.2,3956.2,0.02527121]
[1734396814863,0.74918985,3957.2,3956.3,0.31064684]
[1734396815073,0.74918985,3957.2,3956.4,0.02526942]
[1734396815255,0.74918985,3957.2,3956.1,0.14955782]
[1734396815466,0.74918985,3957.2,3956.4,0.02526942]
[1734396816468,0.74918985,3957.2,3956.1,0.14955782]
[1734396816780,0.74918985,3957.2,3956.1,0.1242884]
[1734396817591,0.74918985,3957.2,3956.2,0.31064684]
[1734396818467,0.74918985,3957.2,3956.3,0.02526944]
[1734396818797,0.74918985,3957.2,3956.4,0.31064684]
[1734396819004,0.55,3959.4,3957.5,3.0]
[1734396819183,0.55,3959.2,3957.5,3.3]
[1734396819384,0.55,3959.0,3957.5,0.3]
[1734396819557,0.55,3958.8,3957.6,3.0]
[1734396819899,0.2343913,3958.7,3956.5,0.02526944]
[1734396820115,0.2343913,3958.6,3956.6,0.33591059]
[1734396820287,0.2343913,3958.5,3956.6,0.33591059]
[1734396820494,1.03570294,3960.7,3956.6,0.33591059]
[1734396820495,1.03570294,3960.8,3957.8,0.758]
[1734396820689,0.23465495,3960.7,3958.9,3.0]
[1734396821028,0.23465495,3960.7,3957.9,0.02525684]
[1734396821029,0.23465495,3960.6,3959.4,3.0]
[1734396821217,0.23465495,3960.5,3959.0,0.3]
[1734396821382,0.23465495,3960.4,3957.9,0.33590368]
[1734396821587,0.23465495,3960.3,3957.9,0.63823545]
[1734396821794,0.23465495,3960.2,3959.4,3.0]
[1734396821992,1.02365495,3960.1,3959.4,3.0]
[1734396822201,0.789,3959.9,3957.9,0.33590368]
[1734396822713,0.789,3959.9,3959.4,3.0]
[1734396823007,0.789,3959.9,3958.1,0.32758602]
[1734396823206,0.789,3959.9,3959.4,3.0]
[1734396823912,0.789,3959.9,3958.2,0.31064684]
[1734396823913,0.78899992,3959.9,3958.2,0.31064684]
[1734396824072,0.78899992,3959.9,3959.4,3.0]
[1734396824469,0.78899992,3959.9,3958.2,0.31064684]
[1734396824974,0.78899992,3959.9,3959.4,3.0]
[1734396825871,0.78899992,3959.9,3958.2,0.31064684]
[1734396826102,0.78899992,3959.9,3958.2,0.43763144]
[1734396826313,0.78899992,3959.9,3959.4,3.0]
[1734396826703,0.23378299,3959.8,3959.4,3.0]
[1734396826906,1.0190258,3959.7,3958.2,0.1269846]
[1734396827116,0.7853,3959.5,3957.9,0.31064684]
[1734396827815,0.7853,3959.5,3958.1,0.12341475]
[1734396828017,0.7853,3959.5,3958.2,0.33590256]
[1734396828241,0.7853,3959.5,3959.3,3.0]
[1734396828541,0.7853,3959.5,3958.3,0.15416491]
[1734396828672,0.7853,3959.5,3959.3,3.0]
[1734396828877,0.7853,3959.5,3958.4,0.31064684]
[1734396829271,0.7853,3959.5,3959.3,3.0]
[1734396829520,0.7853,3959.5,3958.4,0.31064684]
[1734396830017,0.7853,3959.5,3959.3,3.0]
[1734396830220,0.7853,3959.5,3958.4,0.31064684]
[1734396830980,0.7853,3959.5,3958.5,0.02525529]
[1734396831518,0.7853,3959.5,3958.4,0.31064684]
[1734396832535,0.7853,3959.5,3958.5,0.02525394]
[1734396832909,0.7853,3959.5,3958.4,0.31064684]
[1734396834929,0.7853,3959.5,3958.7,0.12340604]
[1734396837264,0.7853,3961.2,3959.8,3.0]
[1734396837461,0.7853,3961.0,3959.8,3.0]
[1734396837668,0.7853,3960.8,3959.8,3.0]
[1734396837824,0.7853,3960.6,3959.8,3.0]
[1734396838315,0.7853,3960.6,3959.8,0.3]
[1734396838523,0.7853,3960.6,3959.8,3.0]
[1734396838932,0.7853,3960.6,3959.0,0.02525108]
[1734396839138,0.7853,3960.6,3959.4,3.0]
[1734396839442,0.8257,3960.4,3957.8,0.31064684]
[1734396839623,0.8257,3959.8,3957.7,0.43563874]
[1734396839818,0.55,3959.5,3957.7,0.24943504]
[1734396840022,0.8257,3959.3,3957.7,0.12499274]
[1734396840257,0.23370149,3959.2,3957.7,0.12499274]
[1734396840464,0.23370149,3959.1,3957.7,0.12499274]
[1734396840617,0.8257,3958.9,3957.7,0.12499274]
[1734396841359,0.8257,3958.7,3957.7,0.12499274]
[1734396841771,0.8257,3959.9,3957.7,0.12499274]
[1734396842059,2.06366895,3960.5,3957.7,0.12499274]
[1734396842060,0.8257,3959.7,3958.7,3.0]
[1734396842259,0.8257,3959.5,3958.7,3.0]
[1734396842460,0.23381759,3959.4,3957.8,0.02526146]
[1734396842671,0.8257,3959.2,3957.7,0.12499274]
[1734396842975,0.8257,3959.0,3957.7,0.12499274]
[1734396843132,0.8257,3959.0,3958.7,3.0]
[1734396843582,0.8257,3959.0,3957.7,0.12499274]
[1734396843779,0.8257,3959.0,3958.7,3.0]
[1734396844067,0.8257,3959.0,3957.8,0.02526147]
[1734396844368,0.8257,3959.0,3958.7,3.0]
[1734396844575,0.8257,3959.0,3957.7,0.4609007]
[1734396844873,0.8257,3959.0,3957.8,0.31064684]
[1734396845168,0.8257,3959.0,3957.8,0.33590828]
[1734396845535,0.8257,3959.0,3958.7,3.0]
[1734396845734,0.8257,3959.0,3957.8,0.33590795]
[1734396845946,0.8257,3959.0,3958.7,3.0]
[1734396846390,0.8257,3959.0,3957.8,0.02526084]
[1734396846579,0.8257,3959.0,3957.8,0.02526145]
[1734396846732,0.8257,3959.0,3957.8,0.31064684]
[1734396846935,0.8257,3959.0,3957.7,0.56286794]
[1734396847271,0.8257,3959.0,3957.7,0.43563958]
[1734396847574,0.8257,3959.0,3957.8,0.31064684]
[1734396847801,0.8257,3959.0,3957.8,0.61297861]
[1734396848563,0.8257,3959.0,3958.9,3.0]
[1734396848763,0.8257,3959.0,3958.9,0.3]
[1734396848960,0.8257,3959.0,3957.8,0.61297861]
[1734396849401,0.8257,3959.0,3957.9,0.7963]
[1734396849701,0.8257,3959.0,3958.0,0.31064684]
[1734396849907,0.8257,3959.0,3958.9,3.0]
[1734396850211,0.8257,3960.6,3958.6,0.31064684]
[1734396850367,0.8257,3960.4,3958.7,0.8215518]
[1734396850569,0.23496245,3960.3,3959.4,3.0]
[1734396850774,0.23496245,3960.2,3959.5,0.3]
[1734396850969,0.23496245,3960.1,3959.4,3.0]
[1734396851169,1.06066245,3960.0,3958.7,0.7963]
[1734396851491,0.8257,3960.0,3958.7,0.7963]
[1734396851812,0.23495515,3959.9,3958.6,0.31064684]
[1734396852104,0.23495515,3959.8,3958.6,0.31064684]
[1734396852303,0.8257,3960.0,3958.6,0.31064684]
[1734396852605,0.8257,3960.0,3958.7,0.02525411]
[1734396852812,0.8257,3960.0,3958.7,0.31064684]
[1734396853314,0.8257,3960.0,3958.7,0.43385967]
[1734396853510,0.23493377,3959.9,3958.7,0.43385967]
[1734396853816,0.8257,3960.0,3959.4,3.0]
[1734396853978,0.2349331,3959.9,3959.5,0.3]
[1734396854310,0.8257,3960.0,3958.7,0.43385967]
[1734396854511,0.23493096,3959.9,3959.4,3.0]
[1734396854687,0.8257,3960.0,3958.7,0.43385967]
[1734396854887,0.23488678,3959.9,3958.7,0.43385967]
[1734396855105,0.8257,3960.0,3958.7,0.43385967]
[1734396855909,0.2348554,3959.9,3959.4,3.0]
[1734396856113,0.8257,3960.0,3959.5,0.3]
[1734396856425,0.8257,3960.0,3959.4,3.0]
[1734396856598,0.8257,3960.0,3958.7,0.43385967]
[1734396858967,0.8257,3960.0,3958.8,0.02525298]
[1734396859149,0.8257,3960.0,3959.9,3.0]
[1734396859312,0.8257,3960.0,3958.8,0.02525298]
[1734396859522,0.8257,3960.0,3959.9,3.0]
[1734396859852,0.8257,3960.0,3959.9,3.3]
[1734396860071,0.8237,3961.2,3960.5,3.0]
[1734396860212,0.8237,3961.2,3959.9,0.3]
[1734396860213,0.8237,3961.2,3960.0,0.02524668]
[1734396860645,0.8237,3961.2,3959.5,0.31064684]
[1734396861055,1.05845063,3961.1,3959.5,0.31064684]
[1734396861253,0.8237,3961.1,3959.6,0.16334405]
[1734396861558,0.8237,3961.1,3959.7,0.30233177]
[1734396861915,0.8237,3961.1,3959.8,0.02524658]
[1734396862160,0.8237,3961.1,3959.8,0.32757835]
[1734396862769,0.8237,3961.1,3959.8,0.30233177]
[1734396862977,0.8237,3961.1,3959.9,0.17961575]
[1734396863585,0.8237,3961.1,3960.0,0.8259]
[1734396865283,0.8237,3962.2,3960.0,1.89622573]
[1734396865483,0.23441451,3962.1,3960.1,1.0450814]
[1734396865660,0.8237,3962.2,3960.2,0.75263715]
[1734396865860,0.23443615,3962.1,3960.2,0.75263715]
[1734396866052,0.8237,3962.0,3960.2,0.75263715]
[1734396866844,0.8237,3962.0,3960.2,0.72739422]
[1734396867284,0.8237,3962.0,3960.2,0.75263717]
[1734396867456,0.8237,3962.0,3960.3,0.59434503]
[1734396868189,0.8237,3962.0,3960.4,0.8259]
[1734396868496,0.8237,3962.0,3960.4,0.85114296]
[1734396868794,0.8237,3963.0,3960.7,0.55]
[1734396869092,0.8237,3963.0,3960.9,0.55]
[1734396869387,0.8237,3963.0,3961.1,0.55]
[1734396869683,0.8237,3963.0,3961.1,0.86064684]
[1734396869857,0.8237,3963.0,3961.2,0.34506674]
[1734396870185,0.8237,3963.0,3961.3,0.8259]
[1734396870390,0.8237,3963.0,3961.4,0.02523496]
[1734396870601,0.8237,3963.0,3961.5,0.14816136]
[1734396870782,0.8237,3963.0,3961.5,0.17339601]
[1734396871085,0.8237,3963.0,3961.5,0.14816136]
[1734396871511,0.8237,3963.0,3960.8,0.95074441]
[1734396871650,0.8237,3963.0,3961.0,0.15177166]
[1734396871848,0.8237,3963.0,3961.1,1.45637861]
[1734396872048,0.8237,3963.0,3961.2,0.02523486]
[1734396872260,0.8237,3963.0,3962.6,3.0]
[1734396872503,0.8237,3963.0,3961.9,0.8259]
[1734396873194,0.8237,3963.0,3962.6,3.0]
[1734396873389,0.8237,3963.0,3962.7,0.3]
[1734396873551,0.8237,3963.0,3961.5,0.12291694]
[1734396876578,0.8237,3963.0,3962.2,3.0]
[1734396877091,0.8237,3963.0,3961.5,0.12291694]
[1734396877452,0.8237,3963.0,3961.0,0.8259]
[1734396880366,0.8237,3962.8,3960.8,0.12560308]
[1734396880579,0.8237,3962.8,3962.1,3.0]
[1734396880864,0.8237,3962.8,3960.8,0.20880499]
[1734396881079,0.8237,3962.8,3960.6,0.8259]
[1734396881463,0.8237,3962.8,3961.2,0.12312483]
[1734396881676,0.55,3962.6,3960.5,0.12727272]
[1734396882000,0.8237,3962.5,3960.3,1.13654684]
[1734396882391,0.8237,3962.3,3960.3,0.12882919]
[1734396882592,0.8237,3962.3,3959.9,1.834529]
[1734396882814,0.8237,3962.3,3960.0,0.1834529]
[1734396882978,0.8237,3962.3,3959.9,0.8259]
[1734396883304,0.23385517,3962.2,3959.9,0.8259]
[1734396883618,0.8237,3962.3,3959.9,0.8259]
[1734396883819,2.14664552,3962.7,3959.9,0.8259]
[1734396883820,0.7634,3962.1,3959.9,0.8259]
[1734396884325,0.7634,3961.7,3959.8,0.12720997]
[1734396884666,0.7634,3961.7,3960.1,0.12457498]
[1734396886409,0.7634,3961.7,3960.5,3.0]
[1734396886636,0.7634,3961.7,3960.6,0.3]
[1734396887769,0.7634,3961.7,3960.1,0.12457498]
[1734396888295,0.23465984,3961.6,3960.1,0.12457498]
[1734396888473,2.14664552,3962.3,3960.1,0.12457498]
[1734396888474,0.7634,3961.5,3960.1,0.12457498]
[1734396889327,0.7634,3961.5,3960.6,3.0]
[1734396889628,0.7634,3961.5,3960.7,3.0]
[1734396889801,0.7612098,3961.5,3960.7,3.3]
[1734396890412,0.7612098,3961.5,3960.7,0.3]
[1734396890711,0.7612098,3961.5,3960.7,3.0]
[1734396891108,0.7612098,3961.5,3960.1,0.12457498]
[1734396893317,0.7612098,3961.5,3960.1,0.92097498]
[1734396893514,0.7612098,3961.5,3960.3,3.0]
[1734396893715,0.7634,3961.8,3960.7,0.7964]
[1734396893900,0.7634,3961.8,3960.8,0.43464]
[1734396894107,0.7634,3961.8,3960.8,0.02523912]
[1734396894462,0.7634,3963.1,3961.0,3.55]
[1734396894598,0.23499204,3963.0,3961.1,0.7964]
[1734396894800,0.7634,3963.1,3961.1,0.7964]
[1734396894999,0.7634,3962.8,3961.1,0.7964]
[1734396895254,0.7634,3962.8,3961.2,0.46914669]
[1734396895459,0.7634,3962.8,3961.8,3.0]
[1734396895610,0.7634,3962.8,3961.2,0.46914669]
[1734396896419,1.03570294,3964.5,3961.6,0.7964]
[1734396896621,1.56260672,3964.7,3961.6,0.7964]
[1734396896622,0.23500672,3964.4,3962.2,0.12891248]
[1734396896846,0.23500672,3964.3,3962.2,0.12891248]
[1734396897066,0.23500672,3964.2,3962.2,0.12891248]
[1734396897268,0.23500672,3964.1,3962.2,0.15414082]
[1734396897569,2.14664552,3964.7,3962.2,0.12891248]
[1734396897703,0.23485543,3964.6,3962.2,0.12891248]
[1734396897903,0.23485543,3964.5,3962.2,0.12891248]
[1734396898098,0.23485543,3964.4,3962.2,0.15414081]
[1734396898303,0.23485543,3964.3,3962.2,0.12891248]
[1734396898553,0.78485543,3964.2,3962.2,0.12891248]
[1734396898761,0.23485543,3964.1,3962.3,0.02523158]
[1734396899058,0.23485543,3964.0,3962.3,0.02523158]
[1734396899267,0.2347146,3963.9,3962.3,0.02523158]
[1734396899560,0.8217,3963.8,3962.3,0.02522929]
[1734396899866,0.8217,3963.8,3963.2,3.0]
[1734396900267,0.8217,3963.8,3962.5,0.0252293]
[1734396900575,2.14664552,3964.8,3962.5,0.15425493]
[1734396900776,0.23474531,3964.7,3962.9,0.7573]
[1734396900905,0.7906,3965.7,3963.1,1.0450814]
[1734396901105,0.23469555,3965.6,3963.6,0.55]
[1734396901351,0.7906,3965.7,3963.9,0.55]
[1734396901557,0.7906,3965.7,3963.8,0.7573]
[1734396902829,0.7906,3965.7,3963.8,0.12481497]
[1734396903189,1.03570294,3966.5,3963.0,1.15803]
[1734396903190,0.78407471,3965.6,3963.0,1.15803]
[1734396903345,0.7906,3965.3,3963.0,0.7573]
[1734396903507,0.55,3965.2,3963.0,0.7573]
[1734396903712,2.14664552,3965.9,3963.0,0.7573]
[1734396903713,0.7906,3965.3,3963.0,0.7573]
[1734396903907,0.7906,3965.0,3963.0,0.7573]
[1734396904366,0.7906,3965.0,3963.0,0.88348865]
[1734396904574,0.7906,3964.8,3963.0,0.12618865]
[1734396904872,2.14664552,3965.5,3962.7,0.02522967]
[1734396904873,0.7906,3964.4,3962.7,0.02522967]
[1734396905156,0.7906,3964.4,3962.6,0.12775087]
[1734396905627,0.7906,3964.4,3962.2,0.7573]
[1734396905832,0.55,3964.1,3961.7,1.63001429]
[1734396906139,0.7906,3963.8,3961.7,0.7573]
[1734396906509,0.55,3963.7,3961.8,0.12300397]
[1734396906781,0.7906,3963.6,3961.8,0.12300397]
[1734396907210,0.7906,3963.6,3961.3,0.7573]
[1734396907411,0.55,3963.5,3961.3,0.7573]
[1734396907610,0.55,3963.5,3961.3,0.88479073]
[1734396907611,0.7906,3963.2,3961.3,0.88479073]
[1734396908241,0.55,3963.1,3960.8,0.7573]
[1734396908682,0.7906,3962.6,3960.8,0.7573]
[1734396908897,0.7906,3962.6,3960.9,0.12388535]
[1734396909544,0.7906,3962.6,3960.8,0.7573]
[1734396910070,0.7906,3962.6,3961.5,3.0]
[1734396910593,0.55,3962.5,3960.5,0.12709884]
[1734396910884,0.7906,3962.2,3960.5,0.12869521]
[1734396913783,0.7906,3962.2,3960.6,0.02524413]
[1734396913984,0.7906,3962.2,3961.3,3.0]
[1734396914183,0.7906,3962.2,3960.6,0.47066711]
[1734396914493,0.7906,3962.2,3961.3,3.0]
[1734396914692,0.7906,3962.2,3960.6,0.47066711]
[1734396914998,0.7906,3962.2,3960.7,0.02524191]
[1734396915195,0.7906,3962.2,3961.2,3.0]
[1734396915378,0.7906,3962.2,3961.3,3.3]
[1734396915553,0.7906,3962.2,3961.3,0.3]
[1734396915759,0.7906,3962.2,3960.7,0.33356615]
[1734396916208,0.7906,3962.2,3961.3,3.0]
[1734396916358,0.7906,3962.2,3960.6,0.1623418]
[1734396916557,0.7906,3962.2,3960.7,0.33356615]
[1734396916788,0.7906,3962.2,3960.6,0.1623418]
[1734396917056,0.7906,3962.2,3960.7,0.41745411]
[1734396917452,0.7906,3962.2,3960.6,0.13710096]
[1734396919400,0.7906,3962.2,3960.7,0.35880959]
[1734396919607,0.7906,3962.2,3960.7,0.33356615]
[1734396919822,0.7906,3962.2,3961.4,3.0]
[1734396920425,0.7906,3962.2,3960.6,0.13710096]
[1734396920725,0.7906,3962.2,3960.7,0.33356615]
[1734396921763,0.7906,3962.2,3960.6,0.13710096]
[1734396922896,0.78803063,3962.2,3960.6,0.13710096]
[1734396923097,0.78803063,3962.2,3961.3,3.0]
[1734396923307,0.78803063,3962.2,3961.4,0.3]
[1734396923709,0.78803063,3962.2,3961.3,3.0]
[1734396923885,0.78803063,3962.2,3960.1,0.8259]
[1734396924090,0.78803063,3962.2,3960.1,0.9525066]
[1734396924838,0.55,3962.1,3960.1,0.9525066]
[1734396925200,0.55,3962.1,3960.1,1.28607275]
[1734396925382,0.55,3962.1,3960.1,0.9525066]
[1734396925998,0.7602,3962.0,3960.1,0.9525066]
[1734396926204,0.7602,3961.8,3960.1,0.1266066]
[1734396926422,0.7602,3961.8,3960.0,0.115497]
[1734396926788,0.7602,3961.8,3960.0,0.24506383]
[1734396927114,0.7602,3961.8,3960.9,3.0]
[1734396927440,0.7602,3961.8,3960.9,0.3]
[1734396927743,0.7602,3961.8,3960.0,0.115497]
[1734396927946,0.7602,3961.8,3960.9,3.0]
[1734396928233,0.7602,3961.8,3960.0,0.24384937]
[1734396928382,0.7602,3961.8,3960.9,3.0]
[1734396928786,0.7602,3961.8,3960.0,0.115497]
[1734396928991,0.7602,3961.8,3960.9,3.0]
[1734396929190,0.7602,3961.8,3961.0,0.3]
[1734396929590,0.7602,3961.8,3960.0,0.115497]
[1734396929790,0.7602,3961.8,3960.0,0.44906315]
[1734396929993,0.7602,3961.8,3960.1,0.33356615]
[1734396930302,0.7602,3961.8,3960.9,3.0]
[1734396930891,0.7602,3961.8,3960.0,0.24428892]
[1734396932301,0.7602,3961.8,3960.9,3.0]
[1734396932493,0.7602,3961.8,3961.0,0.3]
[1734396932984,0.7602,3961.8,3960.0,0.24428892]
[1734396933392,0.7602,3961.8,3960.7,0.2496]
[1734396933592,0.7846,3961.6,3960.7,0.2496]
[1734396933804,0.55,3961.3,3960.7,0.2496]
[1734396934105,2.14411133,3961.4,3960.7,0.2496]
[1734396934106,0.7846,3961.0,3960.7,0.2496]
[1734396934315,0.23461302,3960.9,3960.7,0.2496]
[1734396934491,0.7846,3960.8,3960.7,0.2496]
[1734396934695,1.56937421,3960.8,3960.7,0.2496]
[1734396934918,1.5693731,3960.8,3960.7,0.2496]
[1734396935315,0.55,3960.7,3960.0,0.115497]
[1734396935516,0.55,3960.5,3960.0,0.115497]
[1734396935819,0.7846,3960.2,3960.0,0.115497]
[1734396937735,0.7668777,3960.2,3960.0,0.115497]
[1734396941602,0.55,3960.1,3960.0,0.115497]
[1734396941945,1.3346,3960.1,3960.0,0.115497]
[1734396942171,1.56921302,3960.1,3960.0,0.115497]
[1734396942297,1.3346,3960.1,3960.0,0.115497]
[1734396944949,0.7846,3960.1,3960.0,0.115497]
[1734396945241,0.8049,3960.5,3960.0,0.115497]
[1734396948364,0.25,3962.3,3960.0,0.115497]
[1734396948365,0.8049,3961.9,3960.4,3.0]
[1734396948541,0.8049,3961.9,3960.0,0.115497]
[1734396948542,0.23474851,3961.8,3960.6,0.8279]
[1734396948741,0.23474851,3961.8,3960.6,3.8279]
[1734396948901,0.23474851,3961.8,3960.6,3.0]
[1734396949101,0.23474851,3961.8,3960.1,0.95746741]
[1734396949102,0.8049,3961.7,3960.1,0.95746741]
[1734396949307,0.8049,3961.7,3960.1,0.8279]
[1734396949612,0.23478596,3961.6,3960.1,0.8279]
[1734396949997,0.8049,3961.7,3960.1,0.8279]
[1734396950199,0.78486489,3961.6,3960.1,0.8279]
[1734396950416,0.55,3961.6,3960.1,0.8279]
[1734396950629,0.55,3961.6,3960.4,3.0]